bitfinex-derivatives/quotes_BNBF0:USTF0_20250609
["timestamp","ask_amount","ask_price","bid_price","bid_amount"]
[1749501895399,1.0599516,661.91,661.11,2.24648654]
[1749501895599,1.0599516,661.9,661.11,2.24648654]
[1749501895895,1.0599516,661.96,661.13,2.24648654]
[1749501896098,1.0599516,661.96,661.1,0.26300972]
[1749501896099,1.0599516,661.95,661.17,2.24648654]
[1749501896300,1.0599516,661.94,661.17,2.24648654]
[1749501896494,1.0599516,661.93,661.17,2.24648654]
[1749501896698,1.0599516,661.92,661.17,2.24648654]
[1749501896895,3.23998294,661.93,661.17,2.24648654]
[1749501897096,1.5601885,661.92,661.15,2.24648654]
[1749501897296,1.5601885,661.96,661.15,2.24648654]
[1749501897499,1.0599516,661.95,661.15,2.24648654]
[1749501897800,1.0599516,661.94,661.15,2.24648654]
[1749501898002,1.0599516,661.93,661.09,2.24648654]
[1749501898199,1.0599516,661.92,661.09,2.24648654]
[1749501898398,1.0599516,661.91,661.09,2.24648654]
[1749501898700,1.0599516,661.9,661.09,2.24648654]
[1749501898998,1.0599516,661.89,661.08,2.24648654]
[1749501899196,1.0599516,661.88,661.0,2.24648654]
[1749501899398,1.0599516,661.87,660.98,2.24648654]
[1749501899602,1.0599516,661.86,660.98,2.24648654]
[1749501899802,1.0599516,661.85,660.98,2.24648654]
[1749501900101,1.0599516,661.84,660.98,2.24648654]
[1749501900303,1.0599516,661.83,660.98,2.24648654]
[1749501900498,1.0599516,661.82,660.98,2.24648654]
[1749501900698,1.0599516,661.81,660.98,2.24648654]
[1749501900899,3.24124701,661.88,660.98,2.24648654]
[1749501901100,3.74158462,661.87,660.98,2.24648654]
[1749501901299,3.74158462,661.86,660.98,2.24648654]
[1749501901499,3.74193838,661.85,660.97,2.50953205]
[1749501901698,1.56046445,661.84,660.97,2.50953205]
[1749501901903,1.0599516,661.83,660.97,2.50953205]
[1749501902098,3.74248147,661.89,660.97,2.50953205]
[1749501902298,3.2419686,661.88,660.97,2.50953205]
[1749501902501,3.74248147,661.87,660.97,0.26304551]
[1749501902704,2.07015419,661.86,660.97,0.26304551]
[1749501902904,3.74248147,661.85,660.97,0.26304551]
[1749501903102,3.74248147,661.84,660.97,0.26304551]
[1749501903406,3.74248147,661.83,660.97,0.26304551]
[1749501903604,3.2419686,661.82,660.97,0.26304551]
[1749501903808,3.24203008,661.81,660.97,0.26304551]
[1749501904005,3.24173953,661.8,660.97,0.26304551]
[1749501904204,2.73189355,661.79,660.97,0.26304551]
[1749501904509,2.73189949,661.78,660.97,0.26304551]
[1749501904709,2.2314807,661.77,660.97,0.26304551]
[1749501905007,2.23176721,661.76,660.97,0.26304551]
[1749501905206,1.0599516,661.75,660.97,2.50953205]
[1749501905408,3.74243848,661.91,660.97,0.26304551]
[1749501905606,2.23176197,661.9,660.97,0.26304551]
[1749501905805,1.0599516,661.89,660.97,0.26304551]
[1749501906007,3.24230663,661.91,660.97,0.26304551]
[1749501906207,2.57090994,661.9,660.97,0.26304551]
[1749501906407,3.7427227,661.89,660.97,0.26304551]
[1749501906608,3.7427227,661.88,660.97,0.26304551]
[1749501906806,1.13084469,661.93,660.97,0.26304551]
[1749501906807,3.7427227,661.87,660.97,0.26304551]
[1749501907109,3.74281138,661.86,660.97,2.50953205]
[1749501907308,2.23173536,661.85,660.97,2.50953205]
[1749501907508,1.0599516,661.84,660.97,0.26304551]
[1749501907707,3.24225547,661.92,660.97,0.26304551]
[1749501907907,3.74268633,661.91,660.97,0.26304551]
[1749501908107,3.74268633,661.9,660.97,0.26304551]
[1749501908306,3.74268633,661.89,660.97,0.26304551]
[1749501908508,3.74268633,661.88,660.97,0.26304551]
[1749501908706,1.13084469,661.93,660.97,0.26304551]
[1749501908707,3.74272585,661.87,660.97,0.26304551]
[1749501908908,3.74272585,661.86,660.97,0.26304551]
[1749501909108,1.13084469,661.93,660.97,0.26304551]
[1749501909109,3.24223544,661.85,660.97,0.26304551]
[1749501909308,1.0599516,661.84,660.97,0.26304551]
[1749501909508,3.74280394,661.92,660.97,0.26304551]
[1749501909705,1.56053329,661.91,660.97,0.26304551]
[1749501909911,3.74281137,661.92,660.97,0.26304551]
[1749501910107,3.74281137,661.91,660.97,0.26304551]
[1749501910308,3.74281137,661.9,660.97,0.26304551]
[1749501910509,3.74281236,661.89,660.97,0.26304551]
[1749501910712,3.24232664,661.88,660.97,0.26304551]
[1749501910912,2.57082608,661.87,660.97,0.26304551]
[1749501911110,2.73247273,661.86,660.97,0.26304551]
[1749501911410,3.24227609,661.85,660.8,2.24648654]
[1749501911616,3.74288559,661.84,660.79,2.24648654]
[1749501911809,3.74288559,661.83,660.9,0.26309522]
[1749501912014,3.74288559,661.82,660.9,0.26309522]
[1749501912308,2.07029053,661.81,660.9,0.26309522]
[1749501912513,2.57071522,661.8,660.9,0.26309522]
[1749501912712,3.74269133,661.79,660.9,0.26309522]
[1749501912913,3.74269138,661.78,660.9,0.26309522]
[1749501913113,3.74269138,661.77,660.9,0.26309522]
[1749501913311,3.74269138,661.76,660.9,0.26309522]
[1749501913509,3.74269138,661.75,660.9,0.26309522]
[1749501913812,2.23186277,661.74,660.9,0.26309522]
[1749501914112,2.23186277,661.73,660.9,0.26309522]
[1749501914316,2.23122075,661.72,660.9,0.26309522]
[1749501914513,1.0599516,661.71,660.9,0.26309522]
[1749501914714,2.73179948,661.93,660.9,0.26309522]
[1749501915011,2.07016205,661.92,660.9,0.26309522]
[1749501915309,3.74200993,661.91,660.9,0.26309522]
[1749501915515,3.74200993,661.9,660.9,0.26309522]
[1749501915809,3.24142677,661.89,660.9,0.26309522]
[1749501916009,3.24125062,661.88,660.9,0.26309522]
[1749501916210,2.23121632,661.87,660.9,0.26309522]
[1749501916411,1.13084469,661.94,660.9,0.26309522]
[1749501916412,1.56052347,661.86,660.9,0.26309522]
[1749501916712,2.73169722,661.96,660.9,0.26309522]
[1749501916912,3.74159834,661.95,660.9,0.26309522]
[1749501917112,3.74159834,661.94,660.9,0.26309522]
[1749501917311,3.74159834,661.93,660.9,0.26309522]
[1749501917615,3.74159834,661.92,660.9,0.26309522]
[1749501917812,3.74208853,661.91,660.9,0.26309522]
[1749501918012,1.0599516,661.9,660.9,0.26309522]
[1749501918214,1.0599516,661.96,660.9,0.26309522]
[1749501919015,0.50300355,661.97,660.9,0.26309522]
[1749501919416,1.56295515,661.97,660.9,0.26309522]
[1749501919619,0.50300355,661.97,660.9,0.26309522]
[1749501920013,1.0599516,661.96,660.9,0.26309522]
[1749501921113,3.74236004,661.96,660.93,2.24648654]
[1749501921317,3.74290453,661.95,660.93,2.24648654]
[1749501921515,3.74290453,661.94,660.93,2.24648654]
[1749501921718,3.74290453,661.93,660.93,2.24648654]
[1749501921915,3.74290453,661.92,660.93,2.24648654]
[1749501922114,3.74290586,661.91,660.93,2.24648654]
[1749501922314,3.74290922,661.9,660.93,2.24648654]
[1749501922519,3.74290922,661.89,660.93,2.24648654]
[1749501922821,3.74318555,661.88,660.93,2.24648654]
[1749501923019,2.73231718,661.87,660.93,2.24648654]
[1749501923212,3.24206091,661.86,660.93,2.24648654]
[1749501923417,3.74280696,661.85,660.93,2.24648654]
[1749501923714,3.74280696,661.84,660.93,2.24648654]
[1749501923915,2.73231912,661.83,660.94,2.24648654]
[1749501924219,2.23157568,661.82,660.94,2.24648654]
[1749501924415,2.23157568,661.81,660.94,2.24648654]
[1749501924619,1.0599516,661.8,660.94,2.24648654]
[1749501924816,0.50300355,661.97,660.94,2.24648654]
[1749501925220,1.56295515,661.97,660.94,2.24648654]
[1749501925421,0.50300355,661.97,660.95,2.24648654]
[1749501925620,4.24687478,661.97,660.95,2.24648654]
[1749501925826,3.74399338,661.96,660.95,2.24648654]
[1749501926021,3.74399338,661.95,660.95,2.24648654]
[1749501926222,1.0599516,661.94,661.0,2.24648654]
[1749501926421,0.50300355,661.97,661.0,2.24648654]
[1749501926617,1.63384824,661.97,661.06,2.24648654]
[1749501926922,3.19563593,661.97,661.06,2.24648654]
[1749501927118,3.74405707,661.96,661.06,2.24648654]
[1749501927318,2.7335542,661.95,661.06,2.24648654]
[1749501927518,1.56178769,661.94,661.07,2.24648654]
[1749501927717,2.23171413,661.96,661.07,2.24648654]
[1749501927919,1.0599516,661.95,661.06,2.24648654]
[1749501928119,2.68410941,661.96,661.07,2.24648654]
[1749501928319,1.56178763,661.95,661.07,2.24648654]
[1749501928518,2.23171799,661.96,661.07,2.24648654]
[1749501928821,2.23171799,661.95,661.07,2.24648654]
[1749501929020,3.74405677,661.94,661.07,2.24648654]
[1749501929220,3.74405677,661.93,661.07,2.24648654]
[1749501929425,3.74415312,661.92,661.07,2.24648654]
[1749501929625,1.56178905,661.91,661.07,2.24648654]
[1749501929825,3.74351768,661.96,661.07,2.24648654]
[1749501930121,2.23181509,661.95,661.07,2.24648654]
[1749501930321,3.74352355,661.94,661.07,2.24648654]
[1749501930620,1.55699007,661.93,661.07,2.24648654]
[1749501930824,1.12762262,661.96,661.07,2.24648654]
[1749501930825,0.50194148,661.95,661.07,2.24648654]
[1749501931020,0.50194148,661.95,661.08,2.24648654]
[1749501931021,1.67381025,661.95,661.08,2.24648654]
[1749501931221,1.00986648,661.95,661.08,2.24648654]
[1749501931422,2.1374891,661.95,661.09,2.24648654]
[1749501931622,1.55698859,661.94,661.0,2.24648654]
[1749501931822,2.06491337,661.96,661.0,2.24648654]
[1749501932021,2.6837459,661.95,661.0,2.24648654]
[1749501932228,1.05504817,661.94,660.99,2.24648654]
[1749501932524,1.05504817,661.96,661.0,2.24648654]
[1749501933124,1.05504817,661.96,661.01,2.24648654]
[1749501933524,1.05504817,661.95,661.0,2.24648654]
[1749501933725,1.05504817,661.96,661.0,2.24648654]
[1749501933927,1.05504817,661.95,661.0,2.24648654]
[1749501934130,1.55693023,661.95,661.0,2.24648654]
[1749501934330,1.05504817,661.94,661.0,2.24648654]
[1749501934730,2.22722016,661.95,661.0,2.24648654]
[1749501934927,1.05504817,661.94,661.0,2.24648654]
[1749501935129,1.05504817,661.96,661.01,2.24648654]
[1749501935327,1.05504817,661.95,661.01,2.24648654]
[1749501935526,1.05504817,661.94,661.01,2.24648654]
[1749501935828,1.05504817,661.93,661.01,2.24648654]
[1749501936031,1.55692958,661.96,661.01,2.24648654]
[1749501936229,1.05504817,661.95,661.0,2.24648654]
[1749501936535,1.05504817,661.94,661.0,2.24648654]
[1749501936730,1.05504817,661.93,661.0,2.24648654]
[1749501936929,1.05504817,661.92,661.0,2.24648654]
[1749501937129,1.05504817,661.91,661.0,2.24648654]
[1749501937327,1.05504817,661.96,661.0,2.24648654]
[1749501937628,1.05504817,661.95,661.0,2.24648654]
[1749501937830,1.05504817,661.94,661.0,2.24648654]
[1749501938030,1.05504817,661.93,661.0,2.24648654]
[1749501938227,1.05504817,661.92,661.01,2.24648654]
[1749501938429,1.05504817,661.91,661.01,2.24648654]
[1749501938635,1.05504817,661.9,661.01,2.24648654]
[1749501938832,3.23934072,661.95,661.01,2.24648654]
[1749501939036,3.74178932,661.94,661.01,2.24648654]
[1749501939335,1.55749746,661.93,661.01,2.24648654]
[1749501939536,1.05504817,661.92,661.01,2.24648654]
[1749501939732,1.05504817,661.91,661.01,2.24648654]
[1749501939933,1.05504817,661.9,661.01,2.24648654]
[1749501940129,1.63062617,661.97,661.01,2.24648654]
[1749501940130,1.05504817,661.89,661.01,2.24648654]
[1749501940438,1.05504817,661.88,660.99,2.24648654]
[1749501940631,1.05504817,661.87,660.99,2.24648654]
[1749501940934,1.05504817,661.86,660.99,2.24648654]
[1749501941136,1.05504817,661.85,660.99,2.24648654]
[1749501941336,1.05504817,661.84,660.99,2.24648654]
[1749501941536,1.05504817,661.83,660.99,2.24648654]
[1749501941734,1.05504817,661.82,660.99,2.24648654]
[1749501942040,2.7300749,661.87,661.07,2.24648654]
[1749501942234,1.05504817,661.86,661.26,2.24648654]
[1749501942437,0.50300355,661.97,661.26,2.24648654]
[1749501942934,0.50300355,661.97,661.28,2.24648654]
[1749501943138,0.50300355,661.97,661.29,2.24648654]
[1749501943337,0.50300355,661.97,661.28,2.24648654]
[1749501943737,4.24393842,661.97,661.28,2.24648654]
[1749501943940,2.06628987,661.96,661.28,2.24648654]
[1749501944138,2.72958933,661.95,661.29,2.24648654]
[1749501944336,2.72958933,661.94,661.28,2.24648654]
[1749501944534,1.05504817,661.93,661.27,2.24648654]
[1749501944838,0.50300355,661.97,661.28,2.24648654]
[1749501945443,0.50300355,661.97,661.27,2.24648654]
[1749501947444,0.50300355,661.97,661.26,2.24648654]
[1749501947940,3.23180733,661.97,661.26,2.24648654]
[1749501948146,2.22616946,661.96,661.26,2.24648654]
[1749501948445,2.22616727,661.95,661.26,2.24648654]
[1749501948745,1.05504817,661.94,661.26,2.24648654]
[1749501948942,0.50300355,661.97,661.26,2.24648654]
[1749501950547,0.50300355,661.97,661.25,2.24648654]
[1749501951147,0.50300355,661.97,661.26,2.24648654]
[1749501951444,1.55805172,661.97,661.26,2.24648654]
[1749501951643,0.50300355,661.97,661.26,2.24648654]
[1749501951942,0.50300355,661.97,661.3,2.24648654]
[1749501953544,0.50300355,661.97,661.29,2.24648654]
[1749501954047,0.50300355,661.97,661.28,2.24648654]
[1749501954244,0.50300355,661.97,661.0,0.30257186]
[1749501954245,0.50300355,661.97,661.29,2.24648654]
[1749501955246,0.50300355,661.97,661.3,2.24648654]
[1749501955850,0.50300355,661.97,661.31,2.24648654]
[1749501956547,0.50300355,661.97,661.3,2.24648654]
[1749501957753,0.50300355,661.97,661.31,2.24648654]
[1749501957949,0.50300355,661.97,661.0,0.30257186]
[1749501957950,0.50300355,661.97,661.29,2.24648654]
[1749501958347,0.50300355,661.97,661.3,2.24648654]
[1749501958552,0.50300355,661.97,661.29,2.24648654]
[1749501958750,0.50300355,661.97,661.3,2.24648654]
[1749501959853,0.50300355,661.97,661.29,2.24648654]
[1749501960251,0.50300355,661.97,661.3,2.24648654]
[1749501960455,0.50300355,661.97,661.29,2.24648654]
[1749501960656,0.50300355,661.97,661.3,2.24648654]
[1749501961351,0.50300355,661.97,661.29,2.24648654]
[1749501961856,0.50300355,661.97,661.28,2.24648654]
[1749501963958,0.50300355,661.97,661.29,2.24648654]
[1749501966656,0.50300355,661.97,661.3,2.24648654]
[1749501967561,0.50300355,661.97,661.29,2.24648654]
[1749501970464,0.50300355,661.97,661.3,2.24648654]
[1749501970664,0.50300355,661.97,661.29,2.24648654]
[1749501972066,0.50300355,661.97,661.31,2.24648654]
[1749501972766,0.50300355,661.97,661.32,2.24648654]
[1749501973466,0.50300355,661.97,661.33,2.24648654]
[1749501973963,0.50300355,661.97,661.32,2.24648654]
[1749501975482,0.50300355,661.97,661.33,2.24648654]
[1749501975866,0.50300355,661.97,661.32,2.24648654]
[1749501976269,0.50300355,661.97,661.34,2.24648654]
[1749501984373,0.50300355,661.97,661.35,2.24648654]
[1749501986175,0.50300355,661.97,661.34,2.24648654]
[1749501988573,0.50300355,661.97,661.35,2.24648654]
[1749501988779,0.50300355,661.97,661.34,2.24648654]
[1749501989077,0.50300355,661.97,661.33,2.24648654]
[1749501991778,0.50300355,661.97,661.32,2.24648654]
[1749501993377,0.50300355,661.97,661.33,2.24648654]
[1749501995082,0.26295606,662.0,661.33,2.24648654]
[1749501995576,0.26295606,662.0,661.34,2.24648654]
[1749501995877,0.26295606,662.0,661.36,2.24648654]
[1749501996576,0.26295606,662.0,661.37,2.24648654]
[1749501998381,0.26295606,662.0,661.38,2.24648654]
[1749501998882,4.0117549,662.0,661.4,2.24648654]
[1749501999076,1.55686377,661.99,661.4,2.24648654]
[1749501999380,0.26295606,662.0,661.4,2.24648654]
[1749502000577,0.26295606,662.0,661.41,2.24648654]
[1749502001682,1.05504817,661.99,661.44,2.24648654]
[1749502001979,1.05504817,661.98,661.44,2.24648654]
[1749502002186,1.05504817,661.97,661.44,2.24648654]
[1749502002480,1.05504817,661.96,661.44,2.24648654]
[1749502002685,1.05504817,661.95,661.44,2.24648654]
[1749502002879,1.05504817,661.99,661.44,2.24648654]
[1749502003079,1.05504817,661.98,661.44,2.24648654]
[1749502003279,1.05504817,661.97,661.44,2.24648654]
[1749502003477,1.05504817,661.96,661.44,2.24648654]
[1749502003682,1.05504817,661.95,661.44,2.24648654]
[1749502003882,1.55638313,661.99,661.44,2.24648654]
[1749502004181,1.05504817,661.98,661.44,2.24648654]
[1749502004382,1.05504817,661.97,661.44,2.24648654]
[1749502004582,1.05504817,661.96,661.44,2.24648654]
[1749502004776,1.05504817,661.95,661.44,2.24648654]
[1749502004978,1.05504817,661.99,661.44,2.24648654]
[1749502005182,1.05504817,661.98,661.44,2.24648654]
[1749502005480,1.05504817,661.97,661.45,2.24648654]
[1749502005679,1.05504817,661.96,661.45,2.24648654]
[1749502005879,1.05504817,661.95,661.45,2.24648654]
[1749502006079,1.05504817,661.99,661.45,2.24648654]
[1749502006282,1.05504817,661.98,661.45,2.24648654]
[1749502006480,1.05504817,661.97,661.02,3.74414424]
[1749502006684,1.05504817,661.96,661.03,0.30255812]
[1749502006885,1.05504817,661.95,661.03,0.30255812]
[1749502007082,2.7306349,661.98,661.03,0.30255812]
[1749502007386,1.05504817,661.97,661.03,0.30255812]
[1749502007585,1.05504817,661.96,661.45,2.25531639]
[1749502007786,1.05504817,661.95,661.45,2.25531639]
[1749502007985,1.05504817,661.99,661.45,2.25531639]
[1749502008186,1.05504817,661.98,661.45,2.25531639]
[1749502008487,1.05504817,661.97,661.46,2.25531639]
[1749502008686,1.05504817,661.96,661.46,2.25531639]
[1749502008883,1.05504817,661.95,661.45,2.25531639]
[1749502009083,1.05504817,661.99,661.45,2.25531639]
[1749502009289,1.05504817,661.98,661.45,2.25531639]
[1749502009488,0.26295606,662.0,661.03,4.04670236]
[1749502009489,1.05504817,661.97,661.46,2.25531639]
[1749502009789,1.05504817,661.96,661.46,2.25531639]
[1749502009984,1.05504817,661.95,661.45,2.25531639]
[1749502010183,1.05504817,661.99,661.45,2.25531639]
[1749502010387,1.05504817,661.98,661.45,2.25531639]
[1749502010585,1.05504817,661.97,661.45,2.25531639]
[1749502010786,1.05504817,661.96,661.46,2.25531639]
[1749502011089,1.05504817,661.95,661.46,2.25531639]
[1749502011290,1.05504817,661.94,661.46,2.25531639]
[1749502011584,1.05504817,661.99,661.46,2.25531639]
[1749502011786,1.05504817,661.98,661.46,2.25531639]
[1749502012089,1.05504817,661.97,661.46,2.25531639]
[1749502012385,0.26295606,662.0,661.46,2.25531639]
[1749502012386,1.05504817,661.96,661.46,2.25531639]
[1749502012685,1.05504817,661.95,661.46,2.25531639]
[1749502012883,1.05504817,661.94,661.46,2.25531639]
[1749502013184,1.05504817,661.99,661.46,2.25531639]
[1749502013385,1.05504817,661.98,661.46,2.25531639]
[1749502013588,1.05504817,661.97,661.46,2.25531639]
[1749502013789,1.05504817,661.96,661.46,2.25531639]
[1749502013984,1.05504817,661.95,661.46,2.25531639]
[1749502014189,1.05504817,661.94,661.46,2.25531639]
[1749502014387,1.05504817,661.99,661.46,2.25531639]
[1749502014690,1.05504817,661.98,661.46,2.25531639]
[1749502014891,0.26295606,662.0,661.46,2.25531639]
[1749502014892,1.05504817,661.97,661.46,2.25531639]
[1749502015087,1.05504817,661.96,661.46,2.25531639]
[1749502015287,0.26295606,662.0,661.46,2.25531639]
[1749502015288,1.05504817,661.95,661.46,2.25531639]
[1749502015490,1.05504817,661.94,661.46,2.25531639]
[1749502015792,1.05504817,661.99,661.46,2.25531639]
[1749502016086,1.05504817,661.98,661.46,2.25531639]
[1749502016288,1.05504817,661.97,661.46,2.25531639]
[1749502016585,1.05504817,661.96,661.46,2.25531639]
[1749502016787,1.05504817,661.95,661.46,2.25531639]
[1749502016985,1.05504817,661.94,661.46,2.25531639]
[1749502017190,1.05504817,661.99,661.46,2.25531639]
[1749502017391,1.05504817,661.98,661.46,2.25531639]
[1749502017591,1.05504817,661.97,661.46,2.25531639]
[1749502017789,1.05504817,661.96,661.46,2.25531639]
[1749502017991,1.05504817,661.95,661.46,2.25531639]
[1749502018291,1.05504817,661.94,661.46,2.25531639]
[1749502018492,1.05504817,661.93,661.46,2.25531639]
[1749502018689,1.05504817,661.99,661.46,2.25531639]
[1749502018892,1.05504817,661.98,661.46,2.25531639]
[1749502019087,1.05504817,661.97,661.46,2.25531639]
[1749502019295,1.05504817,661.96,661.46,2.25531639]
[1749502019592,1.05504817,661.95,661.46,2.25531639]
[1749502019788,1.05504817,661.94,661.46,2.25531639]
[1749502019993,1.05504817,661.93,661.46,2.25531639]
[1749502020190,1.05504817,661.99,661.46,2.25531639]
[1749502020396,1.05504817,661.98,661.46,2.25531639]
[1749502020589,1.05504817,661.97,661.46,2.25531639]
[1749502020789,1.05504817,661.96,661.46,2.25531639]
[1749502020990,1.05504817,661.95,661.47,2.25531639]
[1749502021296,1.05504817,661.94,661.46,2.25531639]
[1749502021489,1.05504817,661.93,661.46,2.25531639]
[1749502021694,1.05504817,661.99,661.46,2.25531639]
[1749502021888,1.05504817,661.98,661.46,2.25531639]
[1749502022194,1.05504817,661.97,661.46,2.25531639]
[1749502022395,1.05504817,661.96,661.47,2.25531639]
[1749502022594,1.05504817,661.95,661.47,2.25531639]
[1749502022797,1.05504817,661.94,661.47,2.25531639]
[1749502022994,1.05504817,661.93,661.46,2.25531639]
[1749502023194,1.05504817,661.99,661.46,2.25531639]
[1749502023394,1.05504817,661.98,661.46,2.25531639]
[1749502023593,1.05504817,661.97,661.47,2.25531639]
[1749502023795,1.05504817,661.96,661.47,2.25531639]
[1749502023995,1.05504817,661.95,661.47,2.25531639]
[1749502024194,1.05504817,661.94,661.47,2.25531639]
[1749502024394,1.05504817,661.93,661.47,2.25531639]
[1749502024596,1.05504817,661.99,661.47,2.25531639]
[1749502024794,1.05504817,661.98,661.47,2.25531639]
[1749502024997,1.05504817,661.97,661.47,2.25531639]
[1749502025199,1.05504817,661.96,661.47,2.25531639]
[1749502025395,1.05504817,661.95,661.47,2.25531639]
[1749502025600,1.05504817,661.94,661.47,2.25531639]
[1749502025899,1.05504817,661.93,661.47,2.25531639]
[1749502026199,1.05504817,661.92,661.47,2.25531639]
[1749502026499,1.05504817,661.99,661.47,2.25531639]
[1749502026696,1.05504817,661.98,661.47,2.25531639]
[1749502027000,1.05504817,661.97,661.47,2.25531639]
[1749502027296,1.05504817,661.96,661.47,2.25531639]
[1749502027501,1.05504817,661.95,661.47,2.25531639]
[1749502027696,1.05504817,661.94,661.47,2.25531639]
[1749502027897,1.05504817,661.93,661.47,2.25531639]
[1749502028095,1.77846576,662.0,661.47,2.25531639]
[1749502028096,1.05504817,661.92,661.47,2.25531639]
[1749502028395,1.05504817,661.98,661.47,2.25531639]
[1749502028599,1.05504817,661.97,661.47,2.25531639]
[1749502028798,1.05504817,661.96,661.47,2.25531639]
[1749502028997,1.05504817,661.95,661.47,2.25531639]
[1749502029198,1.05504817,661.94,661.47,2.25531639]
[1749502029400,1.05504817,661.93,661.47,2.25531639]
[1749502029595,1.05504817,661.92,661.47,2.25531639]
[1749502029799,1.05504817,661.91,661.47,2.25531639]
[1749502030000,1.05504817,661.97,661.47,2.25531639]
[1749502030197,1.05504817,661.96,661.47,2.25531639]
[1749502030499,1.05504817,661.95,661.47,2.25531639]
[1749502030696,1.05504817,661.94,661.48,2.25531639]
[1749502030896,1.05504817,661.93,661.48,2.25531639]
[1749502031099,1.05504817,661.92,661.48,2.25531639]
[1749502031302,1.12762262,662.03,661.05,3.74414424]
[1749502031303,1.05504817,661.91,661.12,2.25531639]
[1749502031599,0.26298587,661.85,661.08,2.25531639]
[1749502031902,1.05504817,661.84,661.05,2.25531639]
[1749502032097,1.05504817,661.83,661.05,2.25531639]
[1749502032298,1.05504817,661.82,661.04,2.25531639]
[1749502032497,0.26298587,661.85,661.04,2.25531639]
[1749502032498,1.05504817,661.81,661.04,2.25531639]
[1749502032701,1.05504817,661.8,661.03,2.55787451]
[1749502032902,1.05504817,661.79,661.03,2.55787451]
[1749502033099,1.05504817,661.78,661.03,2.55787451]
[1749502033401,1.05504817,661.77,661.03,2.55787451]
[1749502033605,1.05504817,661.84,661.03,0.30255812]
[1749502033800,1.05504817,661.83,661.03,2.55787451]
[1749502033998,1.05504817,661.82,661.03,2.55787451]
[1749502034200,1.05504817,661.81,661.03,2.55787451]
[1749502034403,1.05504817,661.8,661.03,2.55787451]
[1749502034598,1.05504817,661.79,661.03,0.30255812]
[1749502034798,0.26298587,661.85,661.03,0.30255812]
[1749502034799,1.05504817,661.84,661.03,0.30255812]
[1749502035003,0.26298587,661.85,661.03,0.30255812]
[1749502035004,1.05504817,661.83,661.03,0.30255812]
[1749502035300,1.05504817,661.82,661.03,0.30255812]
[1749502035603,1.05504817,661.81,661.03,0.30255812]
[1749502035801,1.05504817,661.8,661.03,0.30255812]
[1749502035999,1.05504817,661.84,661.03,0.30255812]
[1749502036199,1.05504817,661.83,661.03,0.30255812]
[1749502036401,0.26298587,661.85,661.03,0.30255812]
[1749502036402,1.05504817,661.82,661.03,0.30255812]
[1749502036605,1.05504817,661.81,661.03,0.30255812]
[1749502036805,1.05504817,661.8,661.03,0.30255812]
[1749502037004,1.05504817,661.83,661.03,0.30255812]
[1749502037308,0.26298587,661.85,661.03,0.30255812]
[1749502037309,1.05504817,661.82,661.03,0.30255812]
[1749502037504,1.05504817,661.81,661.03,0.30255812]
[1749502037703,1.05504817,661.8,661.03,0.30255812]
[1749502038004,1.05504817,661.84,661.03,0.30255812]
[1749502038203,1.05504817,661.83,661.03,0.30255812]
[1749502038503,1.05504817,661.82,661.03,0.30255812]
[1749502038704,0.26298587,661.85,661.03,0.30255812]
[1749502038705,1.05504817,661.81,661.03,0.30255812]
[1749502038905,1.05504817,661.8,661.03,0.30255812]
[1749502039106,1.05504817,661.84,661.03,0.30255812]
[1749502039407,1.05504817,661.83,661.03,0.30255812]
[1749502039608,1.05504817,661.82,661.03,0.30255812]
[1749502039809,1.05504817,661.81,661.03,0.30255812]
[1749502040104,1.05504817,661.84,661.03,0.30255812]
[1749502040303,1.05504817,661.83,661.03,0.30255812]
[1749502040508,1.05504817,661.82,661.03,0.30255812]
[1749502040709,1.05504817,661.84,661.03,0.30255812]
[1749502040912,1.05504817,661.83,661.03,0.30255812]
[1749502041210,0.26298587,661.85,661.19,2.25531639]
[1749502042708,0.26298587,661.85,661.2,2.25531639]
[1749502043412,0.26298587,661.85,661.28,2.25531639]
[1749502043610,1.55524844,661.96,661.17,2.25531639]
[1749502043807,1.05504817,661.96,661.2,2.25531639]
[1749502044008,0.2629819,661.95,661.2,2.25531639]
[1749502044512,0.2629819,661.95,661.22,2.25531639]
[1749502047711,0.2629819,661.95,661.21,2.25531639]
[1749502051120,0.2629819,661.95,661.2,2.25531639]
[1749502052721,0.2629819,661.95,661.18,2.25531639]
[1749502053621,0.2629819,661.95,661.03,0.30255812]
[1749502053622,0.2629819,661.95,661.27,2.25531639]
[1749502057827,1.12989468,662.17,661.3,2.25531639]
[1749502058223,0.26295507,661.91,661.3,2.25531639]
[1749502062026,0.26295507,661.91,661.03,0.30255812]
[1749502062623,0.26295507,661.91,661.15,2.25389651]
[1749502067833,0.26295507,661.91,661.25,2.25389651]
[1749502068029,0.26295507,661.91,661.27,2.25389651]
[1749502069033,0.26295507,661.91,661.03,0.30255812]
[1749502069034,0.26295507,661.91,661.29,2.25389651]
[1749502069229,0.26295507,661.91,661.3,2.25389651]
[1749502070133,0.26295507,661.91,661.29,2.25389651]
[1749502070631,0.26295507,661.91,661.36,2.25389651]
[1749502072229,0.26295507,661.91,661.24,2.25389651]
[1749502072934,0.26295507,661.91,661.23,2.25389651]
[1749502073129,0.26295507,661.91,661.22,2.25389651]
[1749502076040,2.49195221,661.91,661.22,2.25389651]
[1749502076234,1.057266,661.9,661.22,2.25389651]
[1749502076438,0.26295507,661.91,661.22,2.25389651]